fUSD/lending_fUSD_20260702
["ID","MTS","AMOUNT","RATE_DAILY","PERIOD"]
[426882404,1782977650000,151.0,0.0001806,2]
[426882405,1782977653000,151.0,0.0001806,2]
[426882406,1782977721000,1189.0,0.00037104,120]
[426882409,1782977754000,5884.0,0.00037104,120]
[426882410,1782977834000,517.04549208,0.00027633,120]
[426882411,1782977836000,180.21927359,0.00037104,120]
[426882412,1782977873000,500.0,0.00027633,120]
[426882413,1782977935000,308.00127764,0.00037104,120]
[426882414,1782978011000,500.0,0.00027633,120]
[426882415,1782978029000,500.0,0.00027633,120]
[426882416,1782978049000,500.0,0.0003709,120]
[426882417,1782978051000,500.0,0.0003709,120]
[426882418,1782978052000,500.0,0.0003709,120]
[426882419,1782978053000,500.0,0.0003709,120]
[426882420,1782978055000,500.0,0.0003709,120]
[426882421,1782978056000,500.0,0.0003709,120]
[426882422,1782978057000,500.0,0.0003709,120]
[426882423,1782978058000,579.90250267,0.0003709,120]
[426882424,1782978076000,582.8536173,0.00027633,120]
[426882426,1782978080000,172.75699102,0.00025397,120]
[426882425,1782978080000,3000.0,0.00025397,120]
[426882427,1782978088000,4832.60826587,0.0003709,120]
[426882430,1782978134000,500.0,0.0002891,120]
[426882429,1782978134000,500.0,0.00027633,120]
[426882433,1782978135000,500.0,0.0002894,120]
[426882432,1782978135000,500.0,0.0002894,120]
[426882431,1782978135000,500.0,0.0002891,120]
[426882435,1782978136000,500.0,0.0002894,120]
[426882434,1782978136000,500.0,0.0002894,120]
[426882436,1782978144000,150.0,0.00019985,2]
[426882437,1782978168000,500.0,0.00027633,120]
[426882439,1782978168000,500.0,0.0002891,120]
[426882438,1782978168000,6531.0,0.0003709,120]
[426882442,1782978169000,500.0,0.0002894,120]
[426882441,1782978169000,500.0,0.0002894,120]
[426882440,1782978169000,500.0,0.0002891,120]
[426882444,1782978170000,500.0,0.0002894,120]
[426882443,1782978170000,500.0,0.0002894,120]
[426882445,1782978237000,189.11,0.0002832,120]
[426882446,1782978273000,151.0,0.0001806,2]
[426882447,1782978276000,151.0,0.0001806,2]
[426882448,1782978277000,151.733033,0.0001806,2]
[426882449,1782978282000,1000.0,0.000165,120]
[426882450,1782978290000,613.86791448,0.00037094,120]
[426882451,1782978295000,284.00642885,0.00037094,120]
[426882452,1782978297000,335.35283164,0.00037094,120]
[426882453,1782978301000,297.12479909,0.00037094,120]
[426882454,1782978308000,333.87683774,0.00037094,120]
[426882455,1782978315000,738.81461039,0.00037094,120]
[426882456,1782978320000,189.35743319,0.00037094,120]
[426882457,1782978325000,348.81221843,0.00037094,120]
[426882458,1782978329000,234.81565064,0.00037094,120]
[426882459,1782978336000,500.0,0.00027598,120]
[426882460,1782978336000,500.0,0.00029899,120]
[426882464,1782978339000,2336.62752225,0.0002,2]
[426882466,1782978340000,1562.93806307,0.0002,2]
[426882467,1782978341000,179.8446071,0.0002,2]
[426882468,1782978344000,506.48897789,0.00028799,120]
[426882471,1782978353000,450.66183954,0.00037094,120]
[426882472,1782978355000,200.0,5e-05,30]
[426882473,1782978356000,1152.55953207,0.00037094,120]
[426882474,1782978361000,310.44127243,0.00037094,120]
[426882476,1782978362000,596.16184659,0.00037094,120]
[426882475,1782978362000,500.0,0.00037094,120]
[426882477,1782978363000,515.28992183,0.00028799,120]
[426882478,1782978368000,177.32316121,0.00037094,120]
[426882479,1782978391000,445.1344311,0.00037094,120]
[426882480,1782978396000,188.06330863,0.00037094,120]
[426882481,1782978403000,1623.03646765,0.00037094,120]
[426882482,1782978412000,39409.47264459,0.00014989,2]
[426882483,1782978417000,189.39284277,0.00037094,120]
[426882484,1782978423000,423.541434,0.00037094,120]
[426882485,1782978425000,610.0772168,0.0001305,2]
[426882489,1782978437000,26076.22736828,0.0002,2]
[426882488,1782978437000,313.95278148,0.00037094,120]
[426882490,1782978439000,183.65217143,0.00037094,120]
[426882491,1782978440000,800.25591134,0.00037094,120]
[426882492,1782978442000,640.03630002,0.00037094,120]
[426882493,1782978446000,250.16888045,0.00037094,120]
[426882494,1782978452000,200.35224768,0.00037094,120]
[426882495,1782978453000,431.51617871,0.0002,2]
[426882496,1782978458000,186.03275341,0.00037094,120]
[426882497,1782978458000,16836.0,0.00037094,120]
[426882498,1782978461000,472.17608371,0.00037094,120]
[426882499,1782978468000,1500.0,0.00014,2]
[426882500,1782978469000,80932.26352449,0.00015,2]
[426882502,1782978479000,288.88575269,0.00037094,120]
[426882503,1782978482000,178.11798589,0.00037094,120]
[426882507,1782978491000,196.94640862,0.00037094,120]
[426882506,1782978491000,11377.98,0.00037094,120]
[426882509,1782978499000,280.54442754,0.00037094,120]
[426882508,1782978499000,200.0,0.00037094,120]
[426882511,1782978500000,285.76130155,0.00037094,120]
[426882510,1782978500000,514.28143405,0.00027598,120]
[426882513,1782978501000,214.42308759,0.00037094,120]
[426882515,1782978503000,206.57329048,0.00037094,120]
[426882514,1782978503000,2284.56623891,0.00037094,120]
[426882516,1782978504000,595.10201086,0.00037094,120]
[426882519,1782978504000,259.83418102,0.00037094,120]
[426882518,1782978504000,1247.85008811,0.00037094,120]
[426882517,1782978504000,202.66141445,0.00037094,120]
[426882521,1782978505000,759.97253587,0.00037094,120]
[426882520,1782978505000,288.31372154,0.00037094,120]
[426882523,1782978506000,1008.55957343,0.00037094,120]
[426882522,1782978506000,2201.43482666,0.00037094,120]
[426882524,1782978507000,1909.49392766,0.00037094,120]
[426882526,1782978508000,246.78431185,0.00037094,120]
[426882525,1782978508000,2375.94815602,0.00037094,120]
[426882528,1782978509000,413.85991803,0.00037094,120]
[426882527,1782978509000,784.41213797,0.00037094,120]
[426882530,1782978512000,2342.43256837,0.00037094,120]
[426882529,1782978512000,480.82497761,0.00037094,120]
[426882531,1782978513000,155.39013334,0.00037094,120]
[426882533,1782978515000,199.80594184,0.00037094,120]
[426882534,1782978515000,1650.62078401,0.00015,30]
[426882535,1782978516000,706.87819616,0.0001,120]
[426882537,1782978517000,548.41360452,0.00037094,120]
[426882536,1782978517000,389.17440673,0.00037094,120]
[426882539,1782978518000,295.68998432,0.00037094,120]
[426882541,1782978519000,333.62406433,0.00037094,120]
[426882540,1782978519000,475.61972437,0.00037094,120]
[426882546,1782978520000,766.14955318,0.00037094,120]
[426882544,1782978520000,474.13529314,0.00037094,120]
[426882547,1782978520000,1671.52285278,0.00037094,120]
[426882545,1782978520000,299.74829732,0.00037094,120]
[426882553,1782978521000,612.84253025,0.00037094,120]
[426882552,1782978521000,177.15712837,0.00037094,120]
[426882551,1782978521000,278.31590981,0.00037094,120]
[426882549,1782978521000,750.34199512,0.00037094,120]
[426882550,1782978521000,332.38308875,0.00027598,120]
[426882548,1782978521000,197.4857105,0.00037094,120]
[426882554,1782978522000,162.21354241,0.00037094,120]
[426882555,1782978523000,509.13450466,0.00037094,120]
[426882558,1782978523000,352.59522082,0.00037094,120]
[426882557,1782978523000,1545.84079052,0.00037094,120]
[426882556,1782978523000,774.96008904,0.00037094,120]
[426882559,1782978524000,177.6664125,0.00037094,120]
[426882561,1782978526000,309.60447669,0.00037094,120]
[426882560,1782978526000,1800.0,0.00037094,120]
[426882563,1782978527000,541.68887104,0.00015,30]
[426882562,1782978527000,1178.77560598,0.00037094,120]
[426882566,1782978528000,675.17189901,0.00037094,120]
[426882564,1782978528000,1059.10320472,0.00037094,120]
[426882565,1782978528000,245.8848186,0.00037094,120]
[426882569,1782978529000,185.11514706,0.00037094,120]
[426882567,1782978529000,306.4596143,0.00037094,120]
[426882568,1782978529000,203.6520461,0.00037094,120]
[426882570,1782978530000,222.04109689,0.00037094,120]
[426882571,1782978531000,822.59173617,0.00037094,120]
[426882572,1782978531000,711.29165081,0.00037094,120]
[426882574,1782978531000,206.44587253,0.00037094,120]
[426882573,1782978531000,440.67404138,0.00037094,120]
[426882581,1782978532000,211.25318645,0.00037094,120]
[426882580,1782978532000,167.26,0.000153,30]
[426882579,1782978532000,832.39376479,0.00037094,120]
[426882578,1782978532000,167.26,0.0001515,30]
[426882577,1782978532000,252.39844938,0.00037094,120]
[426882576,1782978532000,2583.72723849,0.00037094,120]
[426882575,1782978532000,167.26,0.00015,30]
[426882582,1782978533000,167.26,0.0001545,30]
[426882583,1782978533000,167.26,0.000156,30]
[426882584,1782978534000,167.26,0.0001575,30]
[426882585,1782978536000,154.00063882,0.00037094,120]
[426882586,1782978541000,10934.10573577,0.00037094,120]
[426882712,1782978573000,919.78,0.00037094,120]
[426882843,1782978608000,211.606,0.00013592,2]
[426882842,1782978608000,370.75,0.00013281,2]
[426882863,1782978632000,-292.35950649,0.00014908,2]
[426882861,1782978632000,-370.75,0.00014835,2]
[426882865,1782978632000,-150.0,0.00014999,2]
[426882860,1782978632000,-186.76971355,0.00014808,2]
[426882855,1782978632000,-310.39123832,0.000142,2]
[426882864,1782978632000,-300.0,0.00014999,2]
[426882859,1782978632000,-370.75,0.00014524,2]
[426882852,1782978632000,-3515.059128,0.00014128,2]
[426882856,1782978632000,-250.0,0.000142,2]
[426882858,1782978632000,-370.75,0.00014213,2]
[426882857,1782978632000,-151.733033,0.000142,2]
[426882854,1782978632000,-254.86918069,0.000142,2]
[426882853,1782978632000,-340.18473734,0.000142,2]
[426882851,1782978632000,-370.75,0.00013902,2]
[426882850,1782978632000,-159.144,0.00013592,2]
[426882862,1782978632000,-11083.92064077,0.000149,2]
[426882866,1782978632000,-204.89093935,0.00014999,2]
[426882869,1782978632000,-500.0,0.00014999,2]
[426882867,1782978632000,-503.2731595,0.00014999,2]
[426882876,1782978632000,-584.81134229,0.00014999,2]
[426882892,1782978632000,-142448.14444942,0.00015,2]
[426882890,1782978632000,-25125.73781109,0.00015,2]
[426882878,1782978632000,-412.90255961,0.00014999,2]
[426882885,1782978632000,-16639.29161355,0.00015,2]
[426882887,1782978632000,-6870.0495697,0.00015,2]
[426882880,1782978632000,-500.0,0.00014999,2]
[426882879,1782978632000,-500.0,0.00014999,2]
[426882883,1782978632000,-203.70545846,0.00014999,2]
[426882873,1782978632000,-436.95655275,0.00014999,2]
[426882871,1782978632000,-500.0,0.00014999,2]
[426882874,1782978632000,-297.97543297,0.00014999,2]
[426882870,1782978632000,-500.0,0.00014999,2]
[426882872,1782978632000,-500.0,0.00014999,2]
[426882868,1782978632000,-219.11250581,0.00014999,2]
[426882877,1782978632000,-500.0,0.00014999,2]
[426882875,1782978632000,-296.54903417,0.00014999,2]
[426882940,1782978638000,-500.0,0.00021632,2]
[426882938,1782978638000,-162.89,0.00021454,2]
[426882937,1782978638000,-2715.4116,0.00021389,7]
[426882933,1782978638000,-288.16595339,0.00020889,7]
[426882935,1782978638000,-1341.56717797,0.00021389,7]
[426882934,1782978638000,-760.47451023,0.00021389,7]
[426882943,1782978638000,-13487.38882015,0.00021955,2]
[426882936,1782978638000,-2006.90426438,0.00021389,7]
[426882942,1782978638000,-457.57452107,0.00021918,2]
[426882950,1782978638000,-20538.28,0.00022523,2]
[426882939,1782978638000,-163.9,0.00021632,2]
[426882945,1782978638000,-167.15,0.00022425,2]
[426882946,1782978638000,-846.7,0.00022437,2]
[426882948,1782978638000,-300.57,0.00022451,2]
[426882947,1782978638000,-232.0,0.0002244,2]
[426882952,1782978638000,-3051.86,0.00022562,2]
[426882932,1782978638000,-13487.38882015,0.00020769,2]
[426882951,1782978638000,-212.92,0.00022526,2]
[426882953,1782978638000,-150.99,0.00022562,2]
[426882941,1782978638000,-1786.92,0.00021741,2]
[426882929,1782978638000,-7025.99045849,0.0002,2]
[426882922,1782978638000,-512.09,0.00017645,2]
[426882928,1782978638000,-25860.60586995,0.0002,2]
[426882949,1782978638000,-350.03,0.00022466,2]
[426882907,1782978638000,-49635.56617422,0.00015,2]
[426882917,1782978638000,-500.0,0.00016438,2]
[426882920,1782978638000,-2000.0,0.00017645,2]
[426882918,1782978638000,-439.02073763,0.00016438,2]
[426882919,1782978638000,-13487.38882015,0.0001721,2]
[426882921,1782978638000,-2000.0,0.00017645,2]
[426882909,1782978638000,-1148.14206894,0.00015,2]
[426882913,1782978638000,-250.0,0.0001562,2]
[426882931,1782978638000,-231.0,0.0002061,2]
[426882912,1782978638000,-150.0,0.00015197,2]
[426882916,1782978638000,-500.0,0.00016438,2]
[426882914,1782978638000,-13487.3888202,0.00016024,2]
[426882915,1782978638000,-181.0,0.00016124,2]
[426882924,1782978638000,-13487.38882015,0.00018396,2]
[426882925,1782978638000,-13487.38882015,0.00019583,2]
[426882926,1782978638000,-200.0,0.00019955,2]
[426882923,1782978638000,-1690.82,0.00018016,2]
[426882927,1782978638000,-3315.50232035,0.0002,2]
[426882930,1782978638000,-150.0,0.0002061,2]
[426882911,1782978638000,-150.0,0.00015048,2]
[426882954,1782978638000,-715.94,0.00022562,2]
[426882944,1782978638000,-18452.92103065,0.00021988,2]
[426882956,1782978638000,-1848.57,0.00022628,2]
[426882982,1782978638000,-151.0,0.00024801,2]
[426882979,1782978638000,-153.21,0.00024658,2]
[426882983,1782978638000,-151.0,0.00024801,2]
[426882986,1782978638000,-151.0,0.00024801,2]
[426882987,1782978638000,-151.0,0.00024801,2]
[426882985,1782978638000,-151.0,0.00024801,2]
[426882988,1782978638000,-151.0,0.00024801,2]
[426882984,1782978638000,-151.0,0.00024801,2]
[426882989,1782978638000,-151.0,0.00024801,2]
[426882981,1782978638000,-4345.24,0.00024727,2]
[426882991,1782978638000,-151.0,0.00024801,2]
[426882993,1782978638000,-151.0,0.00024801,2]
[426882998,1782978638000,-153.0,0.00025,2]
[426882994,1782978638000,-151.0,0.00024801,2]
[426882995,1782978638000,-200.8224883,0.00024801,2]
[426882996,1782978638000,-152.61433426,0.00024967,2]
[426882997,1782978638000,-165.0,0.00025,2]
[426882999,1782978638000,-6106.93,0.00025,2]
[426883000,1782978638000,-2616.69,0.00025,2]
[426882966,1782978638000,-21229.62412445,0.00024161,2]
[426882992,1782978638000,-151.0,0.00024801,2]
[426882980,1782978638000,-13680.56453919,0.00024708,2]
[426882990,1782978638000,-151.0,0.00024801,2]
[426882976,1782978638000,-1000.0,0.00024658,2]
[426882972,1782978638000,-5000.0,0.00024328,2]
[426882955,1782978638000,-150.0,0.00022628,2]
[426882959,1782978638000,-13487.38882015,0.00023141,2]
[426882957,1782978638000,-189.11,0.00022656,2]
[426882960,1782978638000,-1180.52,0.00023343,2]
[426882958,1782978638000,-1708.07,0.00023137,7]
[426882961,1782978638000,-1210.94063392,0.00023668,2]
[426882965,1782978638000,-161.96466615,0.00024092,7]
[426882963,1782978638000,-165.0,0.00024,2]
[426883001,1782978638000,-1744.12,0.00025,2]
[426882962,1782978638000,-1180.52,0.00023926,2]
[426882964,1782978638000,-153.0,0.00024,2]
[426882971,1782978638000,-13487.38882015,0.00024328,2]
[426882975,1782978638000,-1626.3,0.00024532,7]
[426882973,1782978638000,-160.0,0.00024467,2]
[426882974,1782978638000,-1180.52,0.0002451,2]
[426882978,1782978638000,-155.24,0.00024658,2]
[426882977,1782978638000,-176.3,0.00024658,2]
[426882970,1782978638000,-1852.42,0.00024309,2]
[426882969,1782978638000,-160.592603,0.00024281,2]
[426882967,1782978638000,-2404.29,0.00024161,2]
[426882968,1782978638000,-3104.82,0.00024177,2]
[426883038,1782978639000,-4619.42255365,0.00026,2]
[426883032,1782978639000,-267.09442939,0.0002579,2]
[426883027,1782978639000,-1500.0,0.0002557,2]
[426883031,1782978639000,-3625.4028729,0.00025744,2]
[426883033,1782978639000,-1233667.04786356,0.000258,2]
[426883029,1782978639000,-199.5,0.0002561,2]
[426883030,1782978639000,-1180.52,0.00025677,2]
[426883035,1782978639000,-150.0,0.00025965,5]
[426883037,1782978639000,-1137.03976482,0.00026,2]
[426883040,1782978639000,-153.0,0.00026,2]
[426883044,1782978639000,-360.18773848,0.00026131,2]
[426883052,1782978639000,-167.52780625,0.00026135,2]
[426883045,1782978639000,-361.71706959,0.00026131,2]
[426883043,1782978639000,-302.93218442,0.00026131,2]
[426883042,1782978639000,-160.43418406,0.00026118,2]
[426883046,1782978639000,-167.49131498,0.00026131,2]
[426883036,1782978639000,-613.71456904,0.0002599,2]
[426883041,1782978639000,-221.04398295,0.00026,2]
[426883058,1782978639000,-393.56554576,0.00026135,2]
[426883048,1782978639000,-366.77494221,0.00026131,2]
[426883047,1782978639000,-313.51053462,0.00026131,2]
[426883028,1782978639000,-216.98436515,0.00025579,2]
[426883039,1782978639000,-165.0,0.00026,2]
[426883034,1782978639000,-160.43418406,0.00025844,2]
[426883009,1782978639000,-502.19064025,0.00025397,2]
[426883023,1782978639000,-1500.0,0.0002557,2]
[426883008,1782978639000,-500.0,0.00025397,2]
[426883049,1782978639000,-188.46713466,0.00026134,2]
[426883002,1782978639000,-162.89,0.00025029,2]
[426883006,1782978639000,-159.2,0.00025339,2]
[426883005,1782978639000,-307.26,0.00025217,4]
[426883004,1782978639000,-1310.83,0.00025184,2]
[426883007,1782978639000,-378.81801378,0.00025397,2]
[426883003,1782978639000,-1180.52,0.00025093,2]
[426883010,1782978639000,-500.0,0.00025397,2]
[426883013,1782978639000,-500.0,0.00025397,2]
[426883026,1782978639000,-1500.0,0.0002557,2]
[426883014,1782978639000,-500.0,0.00025397,2]
[426883021,1782978639000,-160.43418406,0.0002557,2]
[426883015,1782978639000,-500.0,0.00025397,2]
[426883012,1782978639000,-500.0,0.00025397,2]
[426883016,1782978639000,-500.0,0.00025397,2]
[426883018,1782978639000,-13487.38882015,0.00025514,2]
[426883017,1782978639000,-500.0,0.00025397,2]
[426883022,1782978639000,-500.0,0.0002557,2]
[426883019,1782978639000,-166.66,0.00025541,2]
[426883020,1782978639000,-451.89,0.00025553,2]
[426883024,1782978639000,-1500.0,0.0002557,2]
[426883011,1782978639000,-500.0,0.00025397,2]
[426883050,1782978639000,-189.65775871,0.00026134,2]
[426883025,1782978639000,-1500.0,0.0002557,2]
[426883055,1782978639000,-265.16606462,0.00026135,2]
[426883078,1782978639000,-200.0,0.000264,9]
[426883079,1782978639000,-500.0,0.000265,9]
[426883077,1782978639000,-28083.93966186,0.000264,2]
[426883082,1782978639000,-1100.0,0.000267,9]
[426883085,1782978639000,-224.44696038,0.000267,2]
[426883087,1782978639000,-20179.98001077,0.0002672,2]
[426883086,1782978639000,-2133.9749315,0.000267,2]
[426883089,1782978639000,-267.09442939,0.0002679,2]
[426883091,1782978639000,-300.0,0.00026799,10]
[426883092,1782978639000,-666.0,0.00026799,2]
[426883103,1782978639000,-5400.0,0.000268,2]
[426883094,1782978639000,-5816.82345627,0.000268,2]
[426883093,1782978639000,-3546596.35477935,0.000268,2]
[426883097,1782978639000,-1668.04589762,0.000268,2]
[426883096,1782978639000,-9561.50740717,0.000268,2]
[426883095,1782978639000,-553.36,0.000268,2]
[426883098,1782978639000,-339.88265974,0.000268,2]
[426883100,1782978639000,-775.32092544,0.000268,2]
[426883099,1782978639000,-17286.7609574,0.000268,2]
[426883101,1782978639000,-18753.8363302,0.000268,2]
[426883102,1782978639000,-3566.30060923,0.000268,2]
[426883051,1782978639000,-169.48591583,0.00026135,2]
[426883088,1782978639000,-267.09442939,0.0002679,2]
[426883081,1782978639000,-160.43418406,0.00026666,2]
[426883090,1782978639000,-300.0,0.00026799,10]
[426883076,1782978639000,-160.43418406,0.00026392,2]
[426883056,1782978639000,-285.47829186,0.00026135,2]
[426883053,1782978639000,-428.04263791,0.00026135,2]
[426883057,1782978639000,-339.96397921,0.00026135,2]
[426883059,1782978639000,-267.79038048,0.00026135,2]
[426883061,1782978639000,-392.10498283,0.00026135,2]
[426883062,1782978639000,-293.52280167,0.00026135,2]
[426883071,1782978639000,-411.15077924,0.00026135,2]
[426883065,1782978639000,-397.42917539,0.00026135,2]
[426883060,1782978639000,-368.49119015,0.00026135,2]
[426883069,1782978639000,-428.36079753,0.00026135,2]
[426883066,1782978639000,-406.62128354,0.00026135,2]
[426883054,1782978639000,-337.37375833,0.00026135,2]
[426883067,1782978639000,-440.40311146,0.00026135,2]
[426883063,1782978639000,-427.51082192,0.00026135,2]
[426883068,1782978639000,-157.81024348,0.00026135,2]
[426883070,1782978639000,-449.80253241,0.00026135,2]
[426883073,1782978639000,-314.49866899,0.00026135,2]
[426883074,1782978639000,-433.96873029,0.00026135,2]
[426883084,1782978639000,-844.14183766,0.000267,2]
[426883083,1782978639000,-13487.38882015,0.000267,2]
[426883075,1782978639000,-425.09834133,0.00026135,2]
[426883072,1782978639000,-406.50788367,0.00026135,2]
[426883064,1782978639000,-358.2212488,0.00026135,2]
[426883080,1782978639000,-800.0,0.000266,9]
[426883107,1782978640000,-1573.41116761,0.000268,2]
[426883108,1782978640000,-3800.0,0.000268,2]
[426883111,1782978640000,-46735.52101017,0.000268,2]
[426883110,1782978640000,-2107.68645529,0.000268,2]
[426883112,1782978640000,-1124.99847685,0.000268,2]
[426883109,1782978640000,-1057.78201256,0.000268,2]
[426883134,1782978643000,-919.31312844,0.000268,2]
[426883128,1782978643000,-3171.36501052,0.000268,2]
[426883129,1782978643000,-2019.17662463,0.000268,2]
[426883127,1782978643000,-9588.82993259,0.000268,2]
[426883126,1782978643000,-316.36825523,0.000268,2]
[426883138,1782978646000,-131.36201028,0.000268,2]
[426883137,1782978646000,-3498.837,0.000268,2]
[426883136,1782978646000,-7072.67566353,0.000268,2]
[426883140,1782978647000,-250.0,0.000268,2]
[426883139,1782978647000,-1023.29004473,0.000268,2]
[426883169,1782978661000,500.0,0.00037094,120]
[426883170,1782978664000,500.0,0.00027124,120]
[426883173,1782978714000,-1447.14640373,0.00014999,2]
[426883174,1782978714000,-661.67178881,0.00014999,2]
[426883172,1782978714000,-1447.14640373,0.00014999,2]
[426883171,1782978714000,-1447.14640373,0.00014999,2]
[426883175,1782978721000,-644.94118572,0.00014999,2]
[426883176,1782978721000,-140.5334292,0.00014999,2]
[426883177,1782978721000,-1447.14640373,0.00014999,2]
[426883178,1782978721000,-1447.14640373,0.00014999,2]
[426883179,1782978721000,-300.79246926,0.00014999,2]
[426883180,1782978721000,-1146.35393447,0.00014999,2]
[426883183,1782978721000,-705.02803601,0.00014999,2]
[426883182,1782978721000,-742.11836772,0.00014999,2]
[426883187,1782978721000,-1447.14640373,0.00014999,2]
[426883186,1782978721000,-263.70213755,0.00014999,2]
[426883181,1782978721000,-1447.14640373,0.00014999,2]
[426883185,1782978721000,-1183.44426618,0.00014999,2]
[426883184,1782978721000,-1447.14640373,0.00014999,2]
[426883195,1782978722000,500.0,0.00037094,120]
[426883194,1782978722000,-960.72206242,0.00014999,2]
[426883193,1782978722000,-1447.14640373,0.00014999,2]
[426883192,1782978722000,-927.75023977,0.00014999,2]
[426883189,1782978722000,-1321.94746858,0.00014999,2]
[426883190,1782978722000,-1447.14640373,0.00014999,2]
[426883188,1782978722000,-125.19893515,0.00014999,2]
[426883191,1782978722000,-519.39616396,0.00014999,2]
[426883196,1782978732000,502.19064025,0.00027598,120]
[426883197,1782978738000,500.0,0.00027598,120]
[426883198,1782978772000,-401.656,0.00014999,2]
[426883199,1782978780000,500.0,0.00027598,120]
[426883200,1782978784000,500.0,0.00037094,120]
[426883201,1782978844000,500.0,0.00037094,120]
[426883204,1782978851000,-171.28812352,0.00014524,2]
[426883202,1782978851000,-563.25,0.00014249,2]
[426883203,1782978851000,-4787.80902111,0.00014524,2]
[426883205,1782978859000,161.96466615,0.000142,7]
[426883206,1782978869000,4181.22921909,0.00037094,120]
[426883207,1782978928000,500.0,0.00027598,120]
[426883209,1782978932000,628.25,0.00037098,120]
[426883208,1782978932000,628.25,0.00037098,120]
[426883210,1782978933000,628.25,0.00037098,120]
[426883211,1782978933000,628.25,0.00037098,120]
[426883212,1782978946000,500.0,0.00027598,120]
[426883213,1782978994000,500.0,0.00027598,120]
[426883215,1782979013000,-563.25,0.00014624,2]
[426883216,1782979013000,-150.0,0.000147,2]
[426883217,1782979013000,-150.0,0.00014775,2]
[426883218,1782979013000,-150.0,0.00014922,2]
[426883220,1782979013000,-500.0,0.00014996,2]
[426883219,1782979013000,-500.0,0.00014996,2]
[426883223,1782979013000,-500.0,0.00014996,2]
[426883222,1782979013000,-500.0,0.00014996,2]
[426883225,1782979013000,-500.0,0.00014996,2]
[426883226,1782979013000,-500.0,0.00014996,2]
[426883224,1782979013000,-500.0,0.00014996,2]
[426883227,1782979013000,-297.44939351,0.00014996,2]
[426883221,1782979013000,-189.30060649,0.00014996,2]
[426883228,1782979015000,-202.55060649,0.00014996,2]
[426883229,1782979015000,-300.0,0.00014996,2]
[426883230,1782979015000,-500.0,0.00014996,2]
[426883231,1782979015000,-500.0,0.00014996,2]
[426883232,1782979015000,-500.0,0.00014996,2]
[426883233,1782979015000,-500.0,0.00014996,2]
[426883235,1782979015000,-500.0,0.00014996,2]
[426883234,1782979015000,-500.0,0.00014996,2]
[426883236,1782979015000,-500.0,0.00014996,2]
[426883238,1782979015000,-497.44939351,0.00014996,2]
[426883240,1782979015000,-500.0,0.00014996,2]
[426883239,1782979015000,-2.55060649,0.00014996,2]
[426883242,1782979015000,-500.0,0.00014996,2]
[426883241,1782979015000,-500.0,0.00014996,2]
[426883243,1782979015000,-500.0,0.00014996,2]
[426883244,1782979015000,-500.0,0.00014996,2]
[426883237,1782979015000,-500.0,0.00014996,2]
[426883254,1782979016000,-500.0,0.00014996,2]
[426883253,1782979016000,-500.0,0.00014996,2]
[426883252,1782979016000,-500.0,0.00014996,2]
[426883250,1782979016000,-2.55060649,0.00014996,2]
[426883245,1782979016000,-500.0,0.00014996,2]
[426883249,1782979016000,-497.44939351,0.00014996,2]
[426883247,1782979016000,-500.0,0.00014996,2]
[426883246,1782979016000,-500.0,0.00014996,2]
[426883256,1782979016000,-500.0,0.00014996,2]
[426883251,1782979016000,-500.0,0.00014996,2]
[426883255,1782979016000,-500.0,0.00014996,2]